bitfinex-derivatives/quotes_ETHF0:USTF0_20250926
["timestamp","ask_amount","ask_price","bid_price","bid_amount"]
[1758880301503,0.3287,3916.1,3916.0,41.2076]
[1758880302003,0.5542,3916.1,3916.0,0.7067]
[1758880303610,0.3287,3916.1,3916.0,1.53468359]
[1758880303810,1.02159,3916.5,3916.4,0.4417]
[1758880304005,1.02159,3916.5,3916.4,0.7067]
[1758880304313,0.8911,3916.5,3916.4,0.7067]
[1758880304608,0.7648,3916.9,3916.8,0.4417]
[1758880304811,0.7648,3916.9,3916.8,0.7067]
[1758880305110,0.5542,3916.9,3916.8,0.7067]
[1758880305308,0.3287,3916.9,3916.8,0.8493]
[1758880306312,0.5542,3916.9,3916.8,0.7067]
[1758880307010,1.22398,3916.6,3916.4,0.68538359]
[1758880307314,0.892,3916.5,3916.4,0.91138359]
[1758880307513,0.892,3916.5,3916.4,1.17638359]
[1758880308209,0.892,3916.5,3916.4,0.491]
[1758880308406,0.6814,3916.5,3916.4,0.7067]
[1758880309512,0.6814,3916.5,3916.4,1.39208359]
[1758880309914,0.6814,3916.5,3916.4,1.53468359]
[1758880310112,0.6814,3916.5,3916.4,1.39208359]
[1758880310309,0.892,3916.5,3916.4,0.491]
[1758880310614,0.892,3916.5,3916.4,1.17743234]
[1758880310807,0.6814,3916.5,3916.4,1.39313234]
[1758880311009,0.455,3917.0,3916.9,0.4417]
[1758880311208,0.6805,3917.0,3916.9,0.7067]
[1758880311513,0.8911,3917.0,3916.9,0.7067]
[1758880312109,0.8911,3917.0,3916.9,0.265]
[1758880312511,0.45914,3916.9,3916.8,0.68639125]
[1758880312709,1.35023,3917.0,3916.8,0.265]
[1758880313015,0.7648,3916.9,3916.8,0.265]
[1758880313417,0.7648,3916.9,3916.8,0.68639125]
[1758880313620,0.89525,3916.8,3916.6,0.68639125]
[1758880313814,1.22397,3916.6,3916.5,0.68639125]
[1758880314115,0.1263,3917.0,3916.4,1.12809125]
[1758880314116,0.892,3916.5,3916.4,1.12809125]
[1758880314318,0.892,3916.5,3916.4,0.265]
[1758880314513,0.5633,3916.5,3916.3,0.68639125]
[1758880314820,0.7648,3916.4,3916.3,0.68639125]
[1758880315121,0.7648,3916.4,3916.3,0.265]
[1758880315322,0.7648,3916.4,3916.3,0.95139125]
[1758880315622,0.7648,3916.4,3916.3,0.68639125]
[1758880315826,1.224,3916.4,3916.3,0.265]
[1758880316118,0.89532,3916.2,3916.1,0.68761712]
[1758880316423,1.22402,3916.2,3916.1,0.95261712]
[1758880317419,6.22402,3916.2,3916.1,0.68761712]
[1758880317614,1.22407,3915.8,3915.7,0.33781712]
[1758880317817,0.7648,3915.8,3915.7,1.36991712]
[1758880318015,0.7648,3915.8,3915.7,0.265]
[1758880319222,0.7648,3915.8,3915.7,1.0321]
[1758880319414,0.7648,3915.8,3915.7,0.4417]
[1758880319621,0.4361,3915.8,3915.7,0.265]
[1758880319815,0.7648,3915.8,3915.7,0.265]
[1758880320017,0.7648,3915.8,3915.4,1.69927954]
[1758880320018,0.892,3915.5,3915.4,1.14056954]
[1758880320218,0.892,3915.5,3915.4,0.226]
[1758880320219,0.9104,3915.5,3915.4,0.226]
[1758880320419,0.9104,3915.5,3915.4,0.265]
[1758880320620,1.25763,3915.3,3915.2,0.2207]
[1758880320926,1.25763,3915.3,3915.2,0.265]
[1758880321622,0.7983,3914.9,3914.8,1.35416954]
[1758880322111,0.3471,3915.4,3914.8,1.39846954]
[1758880322429,0.5662,3915.7,3915.6,0.4396]
[1758880322619,0.5662,3915.7,3915.6,1.0367]
[1758880323220,0.7983,3915.7,3915.6,0.7046]
[1758880323615,0.8064,3915.6,3915.5,40.8]
[1758880323820,0.8064,3915.6,3915.5,41.065]
[1758880324122,0.3471,3915.6,3915.5,41.065]
[1758880325515,0.7793,3915.6,3915.5,0.4857]
[1758880325721,0.45931,3915.5,3915.1,0.3321]
[1758880325918,0.5332,3915.2,3915.1,0.7883]
[1758880326117,0.7463,3915.2,3915.1,0.4562]
[1758880326318,0.7463,3915.2,3915.1,0.7212]
[1758880327521,0.7463,3915.2,3915.1,0.4562]
[1758880327827,0.7463,3915.2,3915.1,0.4948]
[1758880328028,0.5332,3915.2,3915.1,1.0709]
[1758880328331,0.7463,3915.2,3915.1,1.0709]
[1758880330419,0.45933,3915.3,3914.7,0.91456954]
[1758880330420,1.20569,3914.8,3914.7,1.37076954]
[1758880330621,1.20569,3914.8,3914.7,0.7212]
[1758880331122,1.20569,3914.8,3914.5,40.8]
[1758880331123,0.77871,3914.6,3914.5,40.8]
[1758880331327,0.77871,3914.6,3914.5,41.065]
[1758880331519,1.20571,3914.6,3914.5,1.0709]
[1758880332025,0.7463,3914.6,3914.5,1.0709]
[1758880332326,0.7463,3914.6,3914.5,0.8059]
[1758880332522,0.7463,3914.6,3914.5,1.0709]
[1758880333029,0.7463,3914.6,3914.5,0.8059]
[1758880333222,0.7463,3914.6,3914.5,0.7212]
[1758880334124,0.7463,3914.3,3914.2,0.2298]
[1758880334325,0.1362,3914.5,3914.2,0.7212]
[1758880334523,0.1362,3914.5,3914.3,0.8059]
[1758880334524,0.2139,3914.4,3914.3,0.8059]
[1758880334827,0.5332,3914.4,3914.3,1.0709]
[1758880335128,0.45939,3914.8,3914.4,0.45944]
[1758880335331,0.88639,3914.8,3914.7,0.4562]
[1758880335627,0.88639,3914.8,3914.7,0.7212]
[1758880335822,1.20569,3914.8,3914.7,0.7212]
[1758880337023,1.20569,3914.8,3914.7,1.0709]
[1758880337428,0.2139,3915.2,3915.1,0.4562]
[1758880337623,1.20556,3915.9,3915.8,0.4562]
[1758880337932,1.20556,3915.9,3915.8,0.7212]
[1758880338120,0.7463,3915.9,3915.8,0.7212]
[1758880338522,0.7463,3915.9,3915.8,1.0709]
[1758880338722,0.3193,3916.1,3916.0,0.4562]
[1758880339027,0.7463,3916.1,3916.0,0.7152]
[1758880339332,0.7463,3916.1,3916.0,0.4948]
[1758880339721,0.7463,3916.1,3916.0,0.7212]
[1758880340425,0.7463,3916.1,3916.0,0.265]
[1758880340635,0.427,3915.7,3915.6,0.91549]
[1758880340833,0.7463,3915.7,3915.6,0.7212]
[1758880342134,0.7463,3915.7,3915.6,1.0709]
[1758880342530,0.1362,3916.0,3915.6,0.7212]
[1758880342735,0.2139,3916.4,3916.3,0.4562]
[1758880343032,0.2139,3916.4,3916.3,1.0709]
[1758880343033,0.5332,3916.4,3916.3,1.0709]
[1758880343928,0.45917,3916.7,3916.4,0.8089]
[1758880344138,0.5332,3916.8,3916.7,0.4562]
[1758880344334,0.7463,3916.8,3916.7,0.8059]
[1758880344526,0.7463,3916.8,3916.7,0.7212]
[1758880346129,0.3193,3916.8,3916.0,1.51060954]
[1758880346434,0.5332,3916.2,3916.1,1.53013]
[1758880346631,0.7463,3916.2,3916.1,1.53013]
[1758880346834,0.7463,3916.2,3916.1,42.33013]
[1758880347134,0.7463,3916.2,3916.1,1.53013]
[1758880347336,0.7463,3916.2,3916.1,0.4562]
[1758880347533,0.7463,3916.2,3916.1,1.0709]
[1758880348332,0.7463,3915.8,3915.7,0.2298]
[1758880348537,0.7463,3915.8,3915.7,0.4948]
[1758880348834,0.7463,3915.8,3915.7,0.7212]
[1758880349033,0.7463,3915.8,3915.7,0.4562]
[1758880349233,0.7463,3915.8,3915.7,0.7212]
[1758880349431,0.7463,3915.8,3915.7,0.4562]
[1758880349626,0.7463,3915.8,3915.4,1.26521]
[1758880349627,0.5632,3915.5,3915.4,1.26521]
[1758880349836,0.7463,3915.5,3915.4,1.53021]
[1758880350635,0.4669,3916.0,3915.4,0.7212]
[1758880350844,0.9127,3916.0,3915.9,0.7536]
[1758880351031,0.5438,3916.0,3915.9,1.0186]
[1758880351341,0.3307,3916.3,3916.1,0.3256]
[1758880351635,0.7765,3916.3,3916.2,0.693]
[1758880351937,0.7765,3916.3,3916.2,0.4806]
[1758880352137,0.7765,3916.3,3916.2,0.265]
[1758880352835,0.45921,3916.4,3915.4,0.3256]
[1758880352836,0.2131,3915.5,3915.4,0.7536]
[1758880353136,0.911,3915.5,3915.4,1.0186]
[1758880353332,0.911,3915.5,3915.4,0.428]
[1758880353732,1.03962,3915.5,3915.1,0.78495]
[1758880353932,1.03962,3915.5,3915.1,0.2156]
[1758880353933,0.7765,3915.2,3915.1,0.2156]
[1758880354337,0.7765,3915.2,3915.1,0.265]
[1758880354726,0.45936,3915.1,3914.6,41.25942]
[1758880354939,0.5438,3914.7,3914.6,41.58502]
[1758880355239,0.5438,3914.7,3914.6,41.3906]
[1758880356436,0.1345,3915.5,3915.3,0.2156]
[1758880356437,0.3307,3915.4,3915.3,0.2156]
[1758880356637,0.5438,3915.4,3915.3,1.0186]
[1758880356835,1.23583,3915.4,3915.3,1.0186]
[1758880357633,0.20679706,3915.9,3915.5,0.3256]
[1758880357634,0.3307,3915.8,3915.5,0.3256]
[1758880357834,0.5438,3915.8,3915.7,0.7536]
[1758880358439,0.7765,3915.8,3915.7,0.2156]
[1758880358640,0.5438,3915.1,3915.0,0.7536]
[1758880358835,0.5438,3915.1,3915.0,1.0186]
[1758880359034,0.7765,3915.1,3915.0,0.7536]
[1758880359234,0.59381,3915.5,3915.0,1.0186]
[1758880359544,1.23582,3915.4,3915.3,0.428]
[1758880359936,0.7765,3915.4,3915.3,0.428]
[1758880360331,0.5438,3915.4,3915.3,0.428]
[1758880360634,0.5438,3915.7,3915.6,0.428]
[1758880360829,0.7765,3915.7,3915.6,0.693]
[1758880361033,0.7765,3915.7,3915.6,0.428]
[1758880361233,0.7765,3915.7,3915.6,0.693]
[1758880361443,1.23579,3915.7,3915.6,0.693]
[1758880361641,0.7765,3915.7,3915.6,0.693]
[1758880361841,0.7765,3915.7,3915.6,1.0186]
[1758880362240,0.45923,3916.2,3916.1,0.2124]
[1758880362442,0.45923,3916.2,3916.1,1.0186]
[1758880362443,0.78993,3916.2,3916.1,1.0186]
[1758880362641,1.00303,3916.2,3916.1,1.0186]
[1758880362846,0.5438,3916.2,3916.1,1.0186]
[1758880363232,0.5954,3916.5,3916.1,1.47783]
[1758880363438,1.3719,3916.5,3916.4,0.2156]
[1758880364446,1.23572,3916.2,3916.1,0.2156]
[1758880364841,1.23572,3916.2,3916.1,0.4806]
[1758880365236,0.78994,3916.1,3915.7,41.58488]
[1758880365538,0.5438,3915.8,3915.7,41.1256]
[1758880365737,0.7765,3915.8,3915.7,0.693]
[1758880366245,0.7765,3915.8,3915.7,1.0186]
[1758880366936,0.7765,3915.8,3915.7,0.7536]
[1758880367137,0.45926,3915.9,3915.3,1.37185431]
[1758880367138,0.4458,3915.4,3915.3,0.7536]
[1758880367342,0.7765,3915.4,3915.3,0.693]
[1758880367642,0.5438,3915.4,3915.3,1.0186]
[1758880367847,1.23577,3915.8,3915.7,0.428]
[1758880368148,1.23577,3915.8,3915.7,1.0186]
[1758880368353,0.7765,3915.8,3915.7,1.0186]
[1758880368538,1.28234,3917.0,3916.0,0.7536]
[1758880368539,0.67234,3916.1,3916.0,0.7536]
[1758880368846,0.67234,3916.1,3916.0,1.0186]
[1758880369046,1.00304,3916.1,3916.0,1.0186]
[1758880369746,1.23574,3916.1,3916.0,0.4806]
[1758880370052,1.23578,3915.7,3915.6,0.2156]
[1758880370244,0.7765,3915.7,3915.6,0.4806]
[1758880370548,0.59375,3916.0,3915.6,1.0186]
[1758880370849,0.5438,3915.9,3915.8,0.7536]
[1758880371050,0.7765,3915.9,3915.8,0.428]
[1758880372647,0.4458,3915.7,3915.6,0.4806]
[1758880372948,0.7765,3915.4,3915.3,1.34418889]
[1758880373143,0.7765,3915.4,3915.3,1.60918889]
[1758880373337,0.7765,3915.4,3915.3,1.66978889]
[1758880373744,0.7765,3915.4,3915.3,1.60918889]
[1758880374143,0.7765,3915.4,3915.3,1.93478889]
[1758880374939,0.5438,3915.4,3915.3,1.93478889]
[1758880375146,0.5438,3915.6,3915.5,0.7536]
[1758880375347,0.7765,3915.6,3915.5,0.428]
[1758880376453,0.2131,3915.6,3915.5,0.693]
[1758880376642,0.5438,3915.6,3915.5,0.428]
[1758880376843,0.5438,3915.6,3915.5,0.693]
[1758880377044,0.7765,3915.6,3915.5,0.693]
[1758880377347,0.7765,3915.6,3915.5,0.265]
[1758880377647,0.7765,3915.6,3915.5,0.95281858]
[1758880378439,0.7765,3915.6,3915.5,0.68781858]
[1758880379050,0.7765,3915.6,3915.5,1.16841858]
[1758880379356,0.7765,3915.6,3915.5,1.38081858]
[1758880379556,0.7765,3915.6,3915.5,1.70641858]
[1758880379854,0.7765,3915.6,3915.5,1.0186]
[1758880380048,0.7765,3915.6,3915.5,1.70652477]
[1758880380351,1.24746,3915.9,3915.8,0.4479]
[1758880380556,0.90038,3915.7,3915.6,0.91937785]
[1758880380756,1.24748,3915.7,3915.6,0.91937785]
[1758880381252,1.24748,3915.7,3915.6,0.265]
[1758880382254,0.7882,3915.7,3915.6,0.7129]
[1758880382449,0.7882,3915.7,3915.6,1.72117785]
[1758880383449,0.45927,3915.8,3915.6,1.72117785]
[1758880383653,1.1479,3916.8,3915.8,0.7683]
[1758880383852,1.00655,3916.0,3915.9,1.45847785]
[1758880384355,1.34795,3916.0,3915.9,1.12797785]
[1758880384551,1.34795,3916.0,3915.9,0.2194]
[1758880384758,0.45929,3915.6,3915.5,0.68787785]
[1758880385063,1.22159,3915.6,3915.5,0.265]
[1758880386146,0.45932,3915.4,3915.1,0.91655453]
[1758880386359,1.22164,3915.2,3915.1,1.13595453]
[1758880386558,0.7623,3915.2,3915.1,1.62165453]
[1758880386763,0.3293,3915.2,3915.1,1.95215453]
[1758880386964,1.34801,3915.5,3915.4,0.7706]
[1758880387261,1.34801,3915.5,3915.4,1.45869245]
[1758880387559,1.34801,3915.5,3915.4,0.265]
[1758880387760,1.34801,3915.5,3915.4,0.4844]
[1758880387966,1.34801,3915.5,3915.4,1.17249245]
[1758880388150,1.34801,3915.5,3915.4,0.4844]
[1758880388862,1.22157,3915.8,3915.7,0.4401]
[1758880389065,1.22157,3915.8,3915.7,0.7706]
[1758880389356,0.7623,3915.8,3915.7,0.7706]
[1758880389763,0.7623,3915.8,3915.7,1.45865224]
[1758880389972,0.45924,3916.1,3915.7,1.22987]
[1758880390152,1.34795,3916.0,3915.9,1.45864004]
[1758880390460,1.34795,3916.0,3915.9,1.12814004]
[1758880390666,0.8887,3916.0,3915.9,1.12814004]
[1758880391655,0.8887,3916.0,3915.9,0.90744004]
[1758880391861,0.8887,3916.0,3915.9,1.17244004]
[1758880392164,0.8887,3916.0,3915.9,1.39314004]
[1758880393863,0.8887,3916.0,3915.9,1.12814004]
[1758880394064,0.8887,3916.0,3915.9,1.17244004]
[1758880394758,0.8887,3916.0,3915.9,0.4844]
[1758880394965,0.8887,3916.0,3915.9,1.17244004]
[1758880395466,0.8887,3916.0,3915.9,0.4844]
[1758880397962,1.22156,3915.9,3915.8,0.68804004]
[1758880398159,1.22156,3915.9,3915.8,0.265]
[1758880398354,0.5473,3915.8,3915.7,0.68804004]
[1758880398559,0.7623,3915.8,3915.7,0.265]
[1758880399057,0.3293,3915.6,3915.5,0.68804004]
[1758880399262,0.7623,3915.6,3915.5,0.95304004]
[1758880400160,1.01871,3915.5,3915.4,0.68804004]
[1758880400359,1.34801,3915.5,3915.4,0.68804004]
[1758880400658,1.34801,3915.5,3915.4,0.95304004]
[1758880401268,1.34801,3915.5,3915.4,0.265]
[1758880402366,1.34801,3915.5,3915.4,0.4844]
[1758880402661,0.8887,3915.5,3915.4,1.72364004]
[1758880402964,0.218,3915.9,3915.8,0.2194]
[1758880403157,1.14792,3916.8,3915.8,0.7051]
[1758880403466,1.00654,3916.1,3916.0,0.7706]
[1758880404667,0.5473,3916.1,3916.0,0.7706]
[1758880404970,0.7623,3916.1,3916.0,0.7706]
[1758880405357,0.7623,3916.1,3916.0,1.45881604]
[1758880406668,0.7623,3916.1,3916.0,0.7706]
[1758880412769,0.45925,3916.0,3915.9,0.68821604]
[1758880413071,1.04445,3916.0,3915.8,0.95321604]
[1758880413373,0.7873,3915.9,3915.8,0.91801604]
[1758880413571,0.7873,3915.9,3915.8,0.95321604]
[1758880413775,0.7873,3915.9,3915.8,1.0475]
[1758880413776,0.5668,3915.9,3915.8,1.0475]
[1758880413967,0.5668,3915.9,3915.8,1.73571604]
[1758880415071,0.795,3916.4,3916.0,0.45924]
[1758880415275,0.3358,3916.3,3916.0,0.90114]
[1758880415776,0.5668,3916.2,3916.1,0.90113]
[1758880415978,0.5668,3916.2,3916.1,1.16613]
[1758880416165,0.5668,3916.2,3916.1,1.50673]
[1758880417670,0.5668,3916.5,3916.4,0.689]
[1758880417876,0.5668,3916.9,3916.8,0.4419]
[1758880418173,0.5668,3916.9,3916.8,1.0465]
[1758880418367,0.5668,3917.4,3917.3,0.7825]
[1758880418574,0.5668,3917.4,3917.3,1.0465]
[1758880418970,0.022,3917.9,3917.3,1.0465]
[1758880419168,0.7873,3917.8,3917.7,0.2298]
[1758880419368,0.7873,3917.8,3917.7,1.0465]
[1758880419574,0.5668,3917.8,3917.7,1.0465]
[1758880420674,0.022,3917.9,3917.8,0.45904]
[1758880420875,0.022,3917.9,3917.8,1.24154]
[1758880423378,0.022,3917.9,3917.8,1.50554]
[1758880424382,0.022,3917.9,3917.8,1.24154]
[1758880424583,0.022,3917.9,3917.8,1.50554]
[1758880424981,0.022,3917.9,3917.8,1.24154]
[1758880425194,0.022,3917.9,3917.8,1.50554]
[1758880428489,0.022,3917.9,3917.8,0.4419]
[1758880428490,0.8093,3917.9,3917.8,0.4419]
[1758880428982,0.8093,3917.9,3917.8,0.7059]
[1758880429180,0.7873,3917.6,3917.5,0.68887]
[1758880429381,0.7873,3917.6,3917.5,0.4938]
[1758880429581,0.1337,3917.5,3917.3,0.45909]
[1758880429785,0.7873,3917.4,3917.3,0.2298]
[1758880429991,0.7873,3917.4,3917.3,0.4938]
[1758880430188,0.7873,3917.4,3917.3,0.2298]
[1758880430390,0.7873,3917.4,3917.2,0.4591]
[1758880430585,0.7873,3917.1,3917.0,0.2298]
[1758880430787,0.7873,3916.9,3916.8,0.2298]
[1758880430990,0.7873,3916.9,3916.8,0.4938]
[1758880431588,0.1337,3917.5,3916.9,1.24164]
[1758880431792,0.7873,3917.4,3917.1,0.45911]
[1758880431992,0.7873,3917.3,3917.2,0.264]
[1758880433600,0.5668,3917.3,3917.2,0.7059]
[1758880433801,0.7873,3917.3,3917.2,0.7059]
[1758880434200,0.7873,3917.3,3917.2,0.264]
[1758880434798,0.3358,3917.3,3917.2,1.0465]
[1758880435000,0.3647,3917.5,3917.4,0.4419]
[1758880435204,0.921,3917.5,3917.4,0.7825]
[1758880435401,0.921,3917.5,3917.4,0.4419]
[1758880436499,0.4515,3917.3,3917.2,0.4938]
[1758880436702,0.7873,3917.3,3917.2,0.4938]
[1758880437005,0.7873,3917.3,3916.4,40.50573827]
[1758880437006,0.1337,3917.0,3916.6,0.45917]
[1758880437198,0.1337,3917.0,3916.6,0.7825]
[1758880437199,1.24647,3916.7,3916.6,0.7825]
[1758880437394,1.24647,3916.7,3916.6,1.0465]
[1758880437800,0.3358,3915.9,3915.7,0.68773827]
[1758880438006,1.24658,3915.8,3915.3,0.3406]
[1758880438201,1.24658,3915.8,3915.4,0.264]
[1758880438202,0.7873,3915.8,3915.4,0.264]
[1758880438402,0.5563,3915.7,3915.6,0.2298]
[1758880438599,0.7873,3915.7,3915.6,0.2298]
[1758880438798,0.7873,3915.7,3915.6,0.4419]
[1758880439601,0.69032,3915.4,3915.3,0.2298]
[1758880439803,1.24662,3915.4,3915.3,0.2298]
[1758880440012,1.24662,3915.4,3915.3,0.4938]
[1758880440906,0.2304,3914.7,3914.6,40.6099]
[1758880441101,0.2304,3914.7,3914.6,40.8739]
[1758880441303,0.3356,3914.9,3914.8,0.7869]
[1758880441808,0.3356,3915.4,3914.8,0.7869]
[1758880442003,0.3356,3915.4,3915.3,0.7869]
[1758880442004,0.566,3915.4,3915.3,0.7869]
[1758880442204,0.3356,3915.4,3915.3,1.0509]
[1758880442510,0.7984,3915.4,3915.3,1.0509]
[1758880442703,0.7984,3915.4,3915.3,0.7048]
[1758880443503,0.7984,3915.4,3915.3,0.4913]
[1758880443699,1.23179,3914.9,3914.8,0.2142]
[1758880443912,0.45942,3914.7,3914.4,0.3232]
[1758880444210,0.5608,3914.6,3914.5,0.7044]
[1758880444408,0.7724,3914.6,3914.5,1.0276]
[1758880444914,0.5546,3915.4,3915.3,0.2142]
[1758880445106,0.7724,3915.4,3915.3,0.4782]
[1758880445404,0.7724,3915.4,3915.3,0.264]
[1758880446008,1.01396,3915.1,3915.0,0.4404]
[1758880446208,1.23176,3915.1,3915.0,0.7044]
[1758880446908,0.343,3915.4,3915.1,0.45935]
[1758880447114,1.1481,3916.1,3915.3,0.7636]
[1758880447312,0.5546,3915.5,3915.4,1.0276]
[1758880447514,0.7724,3915.5,3915.4,0.7636]
[1758880447813,1.36701,3915.5,3915.4,0.7044]
[1758880448011,0.7724,3915.5,3915.4,1.0276]
[1758880448212,0.45929,3915.7,3915.4,1.0276]
[1758880448512,0.45927,3915.8,3915.7,0.7636]
[1758880448709,1.01387,3915.8,3915.7,0.7636]
[1758880448908,1.23167,3915.8,3915.7,0.4782]
[1758880449809,0.7724,3915.8,3915.7,0.7044]
[1758880450109,0.343,3916.4,3916.3,0.2142]
[1758880450417,1.2316,3916.4,3916.3,0.4782]
[1758880451406,1.2316,3916.4,3916.3,0.264]
[1758880451609,0.88864,3916.1,3916.0,0.2142]
[1758880451810,0.88864,3916.1,3916.0,0.4782]
[1758880452111,1.23164,3916.1,3916.0,0.2142]
[1758880452414,1.23164,3916.1,3916.0,0.4782]
[1758880452614,0.343,3915.4,3915.3,40.61552]
[1758880452806,1.23168,3915.8,3915.7,0.2142]
[1758880453116,1.23168,3915.8,3915.7,0.7044]
[1758880453117,0.7724,3915.8,3915.7,0.7044]
[1758880453512,0.7724,3915.8,3915.7,1.0276]
[1758880455021,0.1353,3916.0,3915.3,0.7636]
[1758880455022,0.4294,3915.4,3915.3,0.7636]
[1758880455216,0.7724,3915.4,3915.3,1.0276]
[1758880455411,0.7724,3915.4,3915.3,0.4404]
[1758880455611,0.7724,3915.4,3915.3,0.264]
[1758880456719,0.343,3915.4,3915.3,1.0276]
[1758880456914,1.01385,3915.9,3915.8,0.2142]
[1758880457121,1.23165,3915.9,3915.8,0.4782]
[1758880458314,0.7724,3915.9,3915.8,1.0276]
[1758880458715,1.23165,3915.9,3915.8,1.0276]
[1758880459614,1.23165,3915.9,3915.8,0.264]
[1758880459821,0.88865,3915.9,3915.8,0.264]
[1758880460022,0.5647,3915.5,3915.1,40.1572]
[1758880460216,0.5647,3915.5,3915.4,0.2142]
[1758880460522,0.9077,3915.5,3915.4,0.7044]
[1758880460918,0.9077,3915.5,3915.4,0.4404]
[1758880461118,0.9077,3915.5,3915.1,0.4404]
[1758880461119,0.7724,3915.2,3915.1,0.4404]
[1758880461318,0.7724,3915.2,3915.1,1.0276]
[1758880461716,0.343,3915.4,3915.3,0.45933]
[1758880461917,0.2116,3915.8,3915.7,0.4404]
[1758880462118,0.5546,3915.8,3915.7,1.0276]
[1758880462423,0.7724,3915.8,3915.7,0.264]
[1758880462816,0.4294,3915.4,3915.3,0.7636]
[1758880463021,0.7724,3915.4,3915.3,0.4782]
[1758880463531,0.7724,3915.4,3915.3,0.2142]
[1758880463724,0.7724,3915.4,3915.3,0.4782]
[1758880464021,0.7724,3915.4,3915.3,1.0276]
[1758880464327,0.7724,3915.4,3915.3,0.7044]
[1758880466015,0.7724,3915.4,3915.3,0.4782]
[1758880466220,0.7724,3915.4,3915.3,1.16593827]
[1758880466926,0.7724,3915.4,3915.3,0.90193827]
[1758880467128,0.7724,3915.4,3915.3,0.4782]
[1758880467332,1.23173,3915.3,3915.2,0.91655453]
[1758880467630,1.23173,3915.3,3915.2,0.95182572]
[1758880467832,0.343,3915.3,3915.2,1.71542572]
[1758880468127,0.5546,3915.4,3915.3,0.7636]
[1758880468325,0.5546,3915.4,3915.3,1.45136541]
[1758880469030,0.7724,3915.4,3915.3,1.45136541]
[1758880469427,0.7724,3915.4,3915.3,1.12816541]
[1758880470128,0.7724,3915.4,3915.3,1.45136541]
[1758880472127,0.7724,3915.4,3915.3,1.12816541]
[1758880472536,0.7724,3915.4,3915.3,0.90196541]
[1758880473033,0.7724,3915.4,3915.3,0.2142]
[1758880473228,0.45933,3915.3,3915.2,0.95176541]
[1758880473439,1.20503,3915.3,3915.2,1.39656541]
[1758880473625,1.20503,3915.3,3915.2,0.68776541]
[1758880473826,1.20503,3915.3,3915.2,0.264]
[1758880474131,1.20503,3915.3,3915.2,0.4966]
[1758880474436,0.7457,3915.1,3915.0,0.92036541]
[1758880474638,0.7457,3915.1,3915.0,1.18436541]
[1758880475131,0.7457,3915.1,3915.0,1.39656541]
[1758880475335,0.7457,3915.1,3915.0,1.71906541]
[1758880479639,0.7457,3915.1,3915.0,0.68776541]
[1758880479832,0.7457,3915.1,3915.0,0.95176541]
[1758880480235,0.7457,3915.1,3915.0,0.264]
[1758880482042,0.7457,3915.1,3914.6,0.68776541]
[1758880482240,0.8878,3914.7,3914.4,0.68776541]
[1758880482537,1.33282,3914.5,3914.4,0.68776541]
[1758880482940,1.33282,3914.5,3914.3,0.68776541]
[1758880483130,0.7457,3914.4,3914.3,0.92036541]
[1758880483335,0.7457,3914.4,3914.3,0.4966]
[1758880483534,0.58712,3914.5,3914.1,0.68776541]
[1758880483535,0.7457,3914.2,3914.1,0.92036541]
[1758880483746,0.7457,3914.2,3914.1,1.71906541]
[1758880484046,0.7457,3914.2,3914.1,1.39656541]
[1758880485044,0.7457,3914.2,3914.1,0.7088]
[1758880485342,0.7457,3914.2,3914.1,0.4448]
[1758880485645,0.8734,3913.5,3913.4,0.92036541]
[1758880485945,0.8734,3913.5,3913.4,1.18436541]
[1758880486238,0.8734,3913.5,3913.4,0.4966]
[1758880486434,0.3173,3913.9,3913.8,0.2326]
[1758880486640,0.77677,3914.1,3914.0,0.7673]
[1758880486943,0.3173,3914.1,3914.0,0.7673]
[1758880487147,0.45944,3914.4,3914.3,0.7673]
[1758880487439,0.45944,3914.4,3914.3,1.0313]
[1758880487850,0.99414,3914.4,3914.3,1.0313]
[1758880489439,0.99414,3914.4,3914.3,0.7673]
[1758880489638,0.99414,3914.4,3914.3,1.0313]
[1758880490045,1.20514,3914.4,3914.3,1.0313]
[1758880490247,1.20514,3914.4,3914.3,0.264]
[1758880490542,1.20514,3914.4,3914.3,0.4966]
[1758880490744,1.20514,3914.4,3914.3,0.7088]
[1758880491544,1.20514,3914.4,3914.3,1.0313]
[1758880491545,0.5347,3914.4,3914.3,1.0313]
[1758880491838,0.5347,3914.4,3914.3,0.7088]
[1758880491839,0.2174,3914.4,3914.3,0.7088]
[1758880492041,0.5347,3914.4,3914.3,1.0313]
[1758880492748,0.7457,3914.4,3914.3,0.7088]
[1758880492944,0.7457,3914.0,3913.9,0.7673]
[1758880493246,1.33288,3914.0,3913.9,0.7673]
[1758880493446,1.33288,3914.0,3913.9,1.0313]
[1758880493646,0.7457,3914.0,3913.9,1.0313]
[1758880494447,0.7457,3914.0,3913.9,0.7673]
[1758880494648,0.7457,3914.0,3913.9,1.0313]
[1758880496750,0.8734,3914.0,3913.9,0.7673]
[1758880497050,0.7457,3914.0,3913.9,1.0313]
[1758880497250,0.5347,3914.0,3913.9,1.71906541]
[1758880497748,0.45942,3914.5,3914.3,0.45944]
[1758880497954,0.5347,3914.9,3914.8,0.4448]
[1758880498146,0.99408,3914.9,3914.8,1.0313]
[1758880499045,1.47995415,3915.5,3914.8,1.0313]
[1758880499046,0.3173,3915.2,3915.0,0.45936]
[1758880499248,0.5347,3915.2,3915.1,1.0313]
[1758880500758,0.7457,3915.2,3915.1,1.0313]
[1758880501249,0.7457,3915.2,3914.9,0.68776541]